Cogmind - Beta 15 @@@ ROGUE MODE // 2025.06.09 @ 03:49:46 Player: Ilbko Result: Destroyed by S-10 Pest with Light Assault Rifle Performance ------------- Evolutions (0) 0 Regions Visited (4) 800 Robots Destroyed (15) 75 Value Destroyed (338) 338 Prototype IDs (23) 460 Alien Tech Used (0) 0 Bonus (307) 307 TOTAL SCORE: 1980 Bonus ------- Follower Combat Kills 7 Aligned with FarCom 300 Cogmind --------- Core Integrity 0/250 Matter 190/300 Energy 118/125 System Corruption 0% Temperature Cool (2) Movement Flying (37) Location -9/Mines Parts ------- > --- POWER (1) -------- Light Ion Engine > --- PROPULSION (2) --- Flight Unit Flight Unit > --- UTILITY (2) ------ 0b10 Alert Chip > --- WEAPON (2) ------- (None) > --- INVENTORY (5) ---- Aluminum Leg Wheel Wheel Large Storage Unit Visual Processing Unit Peak State ------------ > --- POWER ------------ Light Nuclear Core > --- PROPULSION ------- Wheel Wheel > --- UTILITY ---------- High-capacity Storage Unit Makeshift Light Armor Plating > --- WEAPON ----------- Small Laser Grenade Launcher > --- INVENTORY -------- Light Ion Engine Light Ion Engine Aluminum Leg Wheel Wheel Flight Unit Flight Unit Flight Unit Flight Unit Large Storage Unit Humpback Visual Processing Unit Sensor Array Improved Terrain Scanner Light Cannon Mining Laser [Rating: 14] Favorites ----------- Power Light Nuclear Core Engine Ion Engine Power Core Light Nuclear Core Propulsion Wheel Treads Light Treads Wheel Wheel Flight Unit Flight Unit Utility Large Storage Unit Device Heat Sink Storage Large Storage Unit Processor 0b10 Alert Chip Protection Makeshift Light Armor Plating Weapon Small Laser Energy Gun Small Laser Ballistic Cannon Light Cannon Launcher Grenade Launcher Build | -11 -10 -10 -10 -9 ------- Run | Yrd Mat Min Exi Min Slots Evolved . | . . . . . Power . | . . . . . Propulsion . | . . . . . Utility . | . . . . . Weapon . | . . . . . Parts Attached 31 | 6 7 10 3 5 Power 4 | 1 . 2 . 1 Engine 3 | 1 . 1 . 1 Core 1 | . . 1 . . Reactor . | . . . . . Propulsion 10 | 2 3 3 . 2 Treads 2 | 2 . . . . Leg . | . . . . . Wheel 6 | . 3 3 . . Hover . | . . . . . Flight 2 | . . . . 2 Utility 12 | 1 4 3 3 1 Device 3 | . 2 1 . . Storage 6 | 1 1 1 3 . Processor 1 | . . . . 1 Hackware . | . . . . . Protection 2 | . 1 1 . . Artifact . | . . . . . Weapon 5 | 2 . 2 . 1 Energy Gun 3 | 2 . 1 . . Energy Cannon . | . . . . . Ballistic Gun . | . . . . . Ballistic Cannon 1 | . . . . 1 Launcher 1 | . . 1 . . Special Weapon . | . . . . . Impact Weapon . | . . . . . Slashing Weapon . | . . . . . Piercing Weapon . | . . . . . Special Melee Weapon . | . . . . . Unidentified Prototypes . | . . . . . Parts Lost 7 | . 3 . . 4 Power 2 | . 1 . . 1 Propulsion 2 | . 1 . . 1 Utility 1 | . 1 . . . Weapon 2 | . . . . 2 Highest Loss Streak 4 | . 2 . . 4 To Critical Strikes . | . . . . . Average Backups 11 | 2 8 13 15 14 Power 2 | 1 2 2 2 1 Propulsion 3 | . . 5 7 6 Utility 3 | . 2 3 4 4 Weapon 2 | . 2 2 2 1 Tool/Special . | . . . . . Unused Backups 11 | . . 2 1 8 Power 1 | . . . . 1 Propulsion 6 | . . 2 . 4 Utility 3 | . . . 1 2 Weapon 1 | . . . . 1 Tool/Special . | . . . . . Average Slot Usage (%) 94 | . 92 96 100 79 Engine 6 | . 12 2 . 3 Core 6 | . . 8 14 6 Treads 10 | . 22 . . . Wheel 16 | . 2 28 28 27 Device 5 | . 7 11 . . Storage 14 | . 14 14 14 14 Protection 6 | . 3 2 13 11 Energy Gun 19 | . 28 14 14 7 Launcher 7 | . . 13 14 5 Peak Build Rating 14 | 6 8 13 14 14 Average Rating 9 | 4 7 10 13 11 On Entrance 8 | . 6 7 13 14 Naked Turns . | . . . . . Heaviest Build 53 | 13 31 33 53 53 Greatest Support 40 | 40 40 32 20 20 Greatest Overweight (x) 10 | . 10 1 2 2 Average Overweight (x) . | . . . 1 1 Largest Inventory Capacity 20 | 8 15 15 20 20 Average Capacity 16 | 7 14 15 19 19 Most Carried 17 | 4 12 15 17 16 Average Carried 11 | 1 8 13 15 14 Final Capacity 20 | 8 15 15 20 5 Final Carried 16 | 2 11 14 16 5 Class Distribution -------------------- 63% | Mutant 36% | Scavenger-Mutant Dominant Class ---------------- Mutant | -10/Materials Mutant | -10/Mines Scavenger-Mutant | -10/Exiles Mutant | -9/Mines Resources | -11 -10 -10 -10 -9 ----------- Run | Yrd Mat Min Exi Min Matter Collected 531 | 206 119 196 10 . Remotely . | . . . . . Salvage Created 411 | . 302 109 . . Parts 24 | . 16 8 . . Haulers Intercepted . | . . . . . Recyclers Shooed . | . . . . . Parts Field Recycled . | . . . . . Retrieved Matter . | . . . . . Parts Self-Destructed . | . . . . . Prevented . | . . . . . Kills | -11 -10 -10 -10 -9 ------- Run | Yrd Mat Min Exi Min Combat Hostiles Destroyed 13 | . 4 9 . . Guns 5 | . 4 1 . . AOE 8 | . . 8 . . Classes Destroyed 7 | . 5 2 . . Worker 1 | . 1 . . . Builder 1 | . 1 . . . Recycler 1 | . 1 . . . Watcher 1 | . 1 . . . Swarmer 5 | . . 5 . . Grunt 6 | . 4 2 . . Assembled 2 | . . 2 . . Best Kill Streak 4 | . 4 3 . . Combat Bots Only 3 | . 2 3 . . Max Kills in Single Turn 3 | . 1 3 . . Gunslinging . | . . . . . Exploded 2 | . . 2 . . Melee . | . . . . . Uniques/NPCs Destroyed . | . . . . . Combat | -11 -10 -10 -10 -9 -------- Run | Yrd Mat Min Exi Min Hostile Shots Fired 106 | . 59 8 . 39 Missed 30 | . 21 1 . 8 Hits 76 | . 38 7 . 31 Melee 11 | . . . . 11 Projectile 65 | . 38 7 . 20 Critical Strikes 1 | . . . . 1 Damage Taken 1256 | . 547 95 . 614 Core 252 | . 77 32 . 143 Absorbed by Shields . | . . . . . Core Remaining (%) 100 | 100 . . . . Volleys Fired 48 | 1 22 9 . 16 Largest 2 | 2 2 2 . 1 Hottest 90 | 90 90 70 . 40 Shots Fired 72 | 2 44 10 . 16 Gun 58 | 2 44 3 . 9 Cannon 5 | . . . . 5 Launcher 9 | . . 7 . 2 Special . | . . . . . Kinetic 5 | . . . . 5 Thermal 58 | 2 44 3 . 9 Explosive 9 | . . 7 . 2 Electromagnetic . | . . . . . Robot Hit Streak 10 | . 10 8 . 5 Robot Miss Streak 3 | . 3 3 . 2 Penetration Max . | . . . . . Secondary Targets . | . . . . . Shots Hit Robots 41 | . 28 4 . 9 Core Hits 25 | . 14 9 . 2 Critical Kills . | . . . . . Critical Parts Destroyed . | . . . . . Critical Strikes 1 | . 1 . . . Burn 1 | . 1 . . . Melee Attacks . | . . . . . Impact . | . . . . . Slashing . | . . . . . Piercing . | . . . . . Sneak Attacks . | . . . . . Combat Hostiles . | . . . . . Follow-up Attacks . | . . . . . Damage Inflicted 943 | 10 347 431 . 155 Guns 432 | 10 344 10 . 68 Cannons 48 | . . . . 48 Explosions 455 | . . 416 . 39 Melee . | . . . . . Ramming 8 | . 3 5 . . Kinetic 48 | . . . . 48 Thermal 432 | 10 344 10 . 68 Explosive 455 | . . 416 . 39 Electromagnetic . | . . . . . Impact . | . . . . . Slashing . | . . . . . Piercing . | . . . . . Highest Corruption . | . . . . . Average Corruption . | . . . . . Corruption Purged . | . . . . . Corruption Blocked . | . . . . . Overload Shots . | . . . . . Overflow Damage 58 | . . 58 . . Projectiles . | . . . . . Explosions 58 | . . 58 . . Melee . | . . . . . Knockbacks 1 | . . . . 1 Impact . | . . . . . Kinetic 1 | . . . . 1 Secondary . | . . . . . Self-Inflicted Damage 35 | . 1 2 . 32 Shots 1 | . . . . 1 Rammed 2 | . 1 1 . . Targets Rammed 2 | . 1 1 . . Kicked . | . . . . . Crushed . | . . . . . Highest Temperature 108 | 30 108 3 . 104 Average Temperature 38 | 18 33 3 . 52 Received Heat Transfer 389 | . 237 38 . 114 Siege Activations . | . . . . . Martial Activations . | . . . . . Shielding Activations . | . . . . . Robots Disrupted . | . . . . . Combat Hostiles . | . . . . . Robots Corrupted . | . . . . . Combat Hostiles . | . . . . . Parts Fried . | . . . . . Impact Corruptions . | . . . . . Robots Melted . | . . . . . Combat Hostiles . | . . . . . Parts Melted 4 | . 4 . . . Heat Transferred 1179 | 25 979 25 . 150 Parts Sabotaged . | . . . . . Parts Stolen . | . . . . . Parts Stripped . | . . . . . Power Chain Reactions . | . . . . . Alert | -11 -10 -10 -10 -9 ------- Run | Yrd Mat Min Exi Min Maximum Alert Level . | . . . . . Low Security (%) 100 | 100 100 100 . 100 Level 1 . | . . . . . Level 2 . | . . . . . Level 3 . | . . . . . Level 4 . | . . . . . Level 5 . | . . . . . High Security . | . . . . . Max Security . | . . . . . Peak Influence 188 | . 40 188 . 14 Initial . | . . . . . Average 27 | . 5 87 . . Influence Increases 471 | . 156 301 . 14 Destroy 0b10 Robot/C 240 | . 80 160 . . Destroy 0b10 Robot/NC 20 | . 20 . . . Destroy Leader 62 | . 32 30 . . Allied During Kill 24 | . . 24 . . Successful Hack 24 | . 24 . . . Disable Machine 45 | . . 45 . . Destroy Structure 56 | . . 42 . 14 Influence Decreases 471 | . 153 275 29 14 Entered New Map 32 | . . 3 29 . Time Decay 405 | . 143 252 . 10 Lost Part 14 | . 10 . . 4 Lost Ally 20 | . . 20 . . Squads Dispatched 2 | . 2 . . . Investigation . | . . . . . Extermination . | . . . . . Reinforcement 2 | . 2 . . . Assault . | . . . . . Garrison . | . . . . . Intercept . | . . . . . Searches Triggered . | . . . . . Construction Impeded . | . . . . . Haulers Reinforced . | . . . . . Active Scanning Responses . | . . . . . Cargo Convoy Interrupts . | . . . . . Stealth | -11 -10 -10 -10 -9 --------- Run | Yrd Mat Min Exi Min Distress Signals . | . . . . . Communications Jammed . | . . . . . Distress Signals . | . . . . . Times Spotted 30 | . 9 17 . 4 Peak Tracking Total 3 | . 2 3 . 2 Tactical Retreats . | . . . . . Traps | -11 -10 -10 -10 -9 ------- Run | Yrd Mat Min Exi Min Traps Triggered 1 | . 1 . . . Indirectly . | . . . . . Trap Hack Attempts . | . . . . . Triggered . | . . . . . Disarmed . | . . . . . Reprogrammed . | . . . . . Reused . | . . . . . Traps Extracted . | . . . . . Installed . | . . . . . Triggered . | . . . . . Machines | -11 -10 -10 -10 -9 ---------- Run | Yrd Mat Min Exi Min Machines Disabled 3 | . . 3 . . Max in Single Turn 2 | . . 2 . . Machines Repaired . | . . . . . Machines Dismantled . | . . . . . Machines Sabotaged . | . . . . . Overloaded Fab Kills . | . . . . . Hacking | -11 -10 -10 -10 -9 --------- Run | Yrd Mat Min Exi Min Machines Accessed 12 | . 6 1 5 . Terminals 5 | . 5 . . . Fabricators . | . . . . . Repair Stations . | . . . . . Recycling Units 1 | . 1 . . . Scanalyzers . | . . . . . Garrison Access . | . . . . . Total Hacks 65 | . 14 1 50 . Successful 60 | . 9 1 50 . Failed 5 | . 5 . . . Catastrophic 3 | . 3 . . . Database Lockouts . | . . . . . Manual 7 | . 5 . 2 . Terminals 12 | . 12 . . . Fabricators . | . . . . . Repair Stations . | . . . . . Recycling Units 2 | . 2 . . . Scanalyzers . | . . . . . Garrison Access . | . . . . . Terminal Hacks 58 | . 7 1 50 . Record 51 | . 2 . 49 . Robot Analysis 1 | . 1 . . . Open Door 1 | . . 1 . . Locate Traps 1 | . 1 . . . Recall Investigation 1 | . 1 . . . Zone Layout 2 | . 2 . . . Proto ID Catalog 1 | . . . 1 . Fabricator Hacks . | . . . . . Repair Station Hacks . | . . . . . Recycling Unit Hacks 2 | . 2 . . . Report Inventory 2 | . 2 . . . Scanalyzer . | . . . . . Garrison Access Hacks . | . . . . . Unauthorized Hacks . | . . . . . Terminals . | . . . . . Fabricators . | . . . . . Repair Stations . | . . . . . Recycling Units . | . . . . . Scanalyzers . | . . . . . Garrison Access . | . . . . . Data Cores Recovered . | . . . . . Used . | . . . . . Hacking Detections 5 | . 5 . . . Full Trace Events . | . . . . . Feedback Events . | . . . . . Feedback Blocked . | . . . . . Robot Schematics Acquired . | . . . . . Robots Built . | . . . . . Authchips . | . . . . . Time . | . . . . . Total Robot Build Rating . | . . . . . Part Schematics Acquired . | . . . . . Parts Built . | . . . . . Authchips . | . . . . . Time . | . . . . . Total Part Build Rating . | . . . . . Parts Repaired . | . . . . . Time . | . . . . . Parts Recycled . | . . . . . Recycled Matter . | . . . . . Retrieved Matter . | . . . . . Retrieved Components . | . . . . . Parts Scanalyzed . | . . . . . Part Schematics Acquired . | . . . . . Parts Damaged . | . . . . . Bothacking | -11 -10 -10 -10 -9 ------------ Run | Yrd Mat Min Exi Min Used RIF Installer . | . . . . . Robots Hacked . | . . . . . Non-combat . | . . . . . Combat . | . . . . . Robot Hacks Applied . | . . . . . Relay Couplers Released . | . . . . . Fabnet Peak Effective % . | . . . . . Robots Rewired . | . . . . . Allies Hacked . | . . . . . Hacks Repelled . | . . . . . Allies | -11 -10 -10 -10 -9 -------- Run | Yrd Mat Min Exi Min Total Allies 3 | . . 3 . . Largest Group 3 | . . 3 1 . Highest-Rated Group 81 | . . 81 31 . Highest-Rated Ally 31 | . . 31 31 . Total Orders . | . . . . . Ally Attacks 20 | . . 20 . . Total Damage 297 | . . 297 . . Kills 9 | . . 9 . . Allies Corrupted . | . . . . . Allies Melted . | . . . . . Intel | -11 -10 -10 -10 -9 ------- Run | Yrd Mat Min Exi Min Active Infowar (turns) 13 | . 13 . . . Sensors 13 | . 13 . . . Robot Analysis Total 1 | . 1 . . . Derelict Logs Recovered 1 | . . 1 . . Drone Launches . | . . . . . Drone Recoveries . | . . . . . Exploration | -11 -10 -10 -10 -9 ------------- Run | Yrd Mat Min Exi Min Turns Passed 2766 | 86 1184 571 755 170 Spaces Moved 2069 | 51 683 528 682 125 Core 21 | 10 11 . . . Treads 611 | 41 570 . . . Legs . | . . . . . Wheels 1426 | . 102 528 682 114 Hover . | . . . . . Flight 11 | . . . . 11 Fastest Speed 37 | 50 100 95 95 37 Average Speed 122 | 138 158 97 108 103 Slowest Speed 550 | 160 550 105 110 110 Overloaded Moves . | . . . . . Propulsion Burnouts . | . . . . . Robots Hopped . | . . . . . Potential Cave-ins . | . . . . . Cave-ins Triggered . | . . . . . Exploration Rate (%) 65 | 4 94 98 93 36 Regions Visited 4 Branch Regions 3 Pre-discovered Areas 1 | . . . 1 . Known Exits Taken . | . . . . . Unknown Exits Taken 4 | 1 1 1 1 . Scrap Searched 1 | . . 1 . . Spaces Dug . | . . . . . Terrain Destroyed 69 | . . 55 . 14 Melee . | . . . . . Projectile . | . . . . . AOE 69 | . . 55 . 14 Terrain Rammed . | . . . . . Walls Destroyed . | . . . . . Machines Disabled . | . . . . . Actions | -11 -10 -10 -10 -9 --------- Run | Yrd Mat Min Exi Min Total 2230 | 64 740 579 698 149 Wait 23 | . 12 7 4 . Move 2065 | 50 682 527 681 125 Hop . | . . . . . Pick Up 36 | 7 13 11 5 . Fast Attach 1 | 1 . . . . Attach 18 | 5 6 3 . 4 Detach 1 | . 1 . . . Swap 18 | . 2 9 5 2 Drop 18 | . 1 12 3 2 Fire 48 | 1 22 9 . 16 Melee . | . . . . . Ram 2 | . 1 1 . . Kick . | . . . . . Crush . | . . . . . Escape Stasis . | . . . . . Rewire . | . . . . . Trap . | . . . . . Miscellaneous . | . . . . . Route ------- -11/Scrapyard -10/Materials (discovered 4 exits: [*Mat x3] / *Min) -10/Mines (discovered 4 exits: [*Mat x2] / *Exi / [*Sub]) -10/Exiles -9/Mines History --------- Turn | Location | Event 3 | -11/Scrapyard | Discovered new exit (range 16) 87 | -11/Scrapyard | Entered Materials 216 | -10/Materials | Discovered new exit (range 11) 306 | -10/Materials | Build established: Mutant 661 | -10/Materials | Discovered new exit (range 16) 712 | -10/Materials | Discovered new exit (range 14) 918 | -10/Materials | Discovered new exit (range 5) 1271 | -10/Materials | Entered Mines 1279 | -10/Mines | Assembled infested the area 1376 | -10/Mines | Received a Mining Laser from a helpful Derelict 1391 | -10/Mines | Discovered new exit (range 4) 1573 | -10/Mines | Discovered new exit (range 8) 1636 | -10/Mines | Learned Materials interactive machine intel 1668 | -10/Mines | Discovered new exit (range 15) 1687 | -10/Mines | Met a Derelict who couldn't figure out how to use a Trap Extractor 1837 | -10/Mines | Deemed a non-threat by the Exiles lab entrance 1838 | -10/Mines | Discovered new exit (range 5) 1842 | -10/Mines | Entered Exiles 1842 | -10/Exiles | Accompanied by 1 ally 1867 | -10/Exiles | Met 8R-AWN 1872 | -10/Exiles | Led the pair of lost Derelicts to a safe place 1888 | -10/Exiles | Met EX-HEX 1951 | -10/Exiles | Met EX-DEC 1978 | -10/Exiles | Visited The Gauntlet 2029 | -10/Exiles | Build established: Scavenger-Mutant 2136 | -10/Exiles | Learned location of Zion (-7) 2191 | -10/Exiles | Discovered new exit (range 10) 2304 | -10/Exiles | Met EX-BIN 2425 | -10/Exiles | Aligned with FarCom system 2426 | -10/Exiles | Given EX-Vault access code 2452 | -10/Exiles | Opened EX-Vault 2461 | -10/Exiles | Found 0b10 Alert Chip 2483 | -10/Exiles | Warned to stay clear of 0b10 Research branches 2597 | -10/Exiles | Left Exiles lab with 0b10 Alert Chip 2597 | -10/Exiles | Entered Mines 2683 | -9/Mines | Core integrity fell below 50% 2691 | -9/Mines | Core integrity fell below 20% 2707 | -9/Mines | Lost 4 parts (1p1n2w) 2767 | -9/Mines | Destroyed by S-10 Pest with Light Assault Rifle Last Messages --------------- will continue to maintain contact via our distributed network. EX-BIN: And don't even think about spreading that code around. We're gonna change it right after you leave. Most certainly not to something like 1234 which I did last time as a little joke and some thief managed to sneak in here and steal a few of HEX's prototypes. LOCATION=UNKNOWN GOAL=ESCAPE 02597_ Receiving FarCom transmissions... 02658_ Grenade Launcher destroyed. 02666_ Lgt. Nuclear Core destroyed. 02673_ Wheel destroyed. 02676_ Sml. Laser destroyed. 02684_ L-31 Rogue knocked back. 02688_ Lgt. Cannon severed. 02696_ The unstable cave ceiling collapses. 02738_ Dropped Mak. Light Armor Plating. 02762_ Dropped Hcp. Storage Unit. Map ----- +----------------------------------------------------+ | ?????????????????????????????????????????????????? | | ???????????????????????????????????????######????? | | ???????????????????????????????????##### ###??? | | ??????????????????????????????????## #### | | ?????????????????????????????????## # | | ????????????????????????????????## ### % | | ????????????????????????# ###### ### | | ????????????????????????# #### # | | ????????????????????????# # ## | | ????????????????????????" ## ###? | | ????????????????????????" ## ####??? | | ????????????????????????#X ### ######? | | ????????????????????????# ##?# ## | | ????????????????????????## ???# # | | ?????????????????????????### ???####### | | ???????????????????????????## ?????????# | | ????????????????????????????## ????????## | | ?????????????????????????????## ??????### | | ??????????????????????????????### ?????## | | ????????????????????????????????### ????## "" | | ??????????????????????????????????# ????# "" | | ??????????????????????????????????# ????# "" | | ??????????? ??????????????????# #???## | | ?????????? ??????????????# #????### | | ?????????? #########??# #??????## | | ?????????? @ #??# #???????## | | ?????????? #??# #????????## | | ?????????s #### #??# #?????????## | | ??????????? ss ???# #??# #??????????# | | ???????????## ???# #??# ##?????????# | | ????????????## #???# #??# ########?## | | ?????????????##### #????# #??# ### ! | | ?????????????????### #?????# #??# ## | | ???????????????????###??????# l#### ##### | | ????????????????????????????# =!!*g #???#### | | ????????????????????????????# |== ##??????# | | ????????????????????????????###### ##???????## | | ?????????????????????????????????## ##?????????## | | ??????????????????????????????????###???????????## | | ?????????????????????????????????????????????????# | | ?????????????????????????????????????????????????? | | ?????????????????????????????????????????????????? | | ?????????????????????????????????????????????????? | | ?????????????????????????????????????????????????? | | ?????????????????????????????????????????????????? | | ?????????????????????????????????????????????????? | | ?????????????????????????????????????????????????? | | ?????????????????????????????????????????????????? | | ?????????????????????????????????????????????????? | | ?????????????????????????????????????????????????? | +----------------------------------------------------+ Best States ------------- Heat Dissipation 39 Energy Generation 14 Energy Capacity 310 Matter Stores 300 Matter Capacity 300 Sight Range 16 Robot Scan Range 14 Terrain Scan Density 10 Armor Coverage 150 Evasion (%) 50 Recoil Reduction 2 Item Schematics ----------------- None Robot Schematics ------------------ None Fabricated ------------ Nothing Repaired ---------- Nothing Alien Tech Used ----------------- None Achievements -------------- None Challenges ------------ None Game ------ Seed PulseLegProjector Manual? 0 Play Time 00:37:37 Cumulative 5.0 hours Start 2025.06.09 @ 03:12:51 End 2025.06.09 @ 03:49:46 Sessions 2 Manual Loads 0 Difficulty Rogue Special Mode None Game No. 5 Rogue 2 Adventurer 3 Explorer 0 Win Type - Total 0 Types 0/0/0/0/0/0/0/0/0/0 Lore% 9 Gallery% 10 Achievement% 13 Wizard Run 0 Options --------- Layout 1 ASCII 0 Keyboard 0 Movement Mouse Keybinds 0 Fullscreen 1 Font 24/Smallcaps Map View 50x35 Zoom Use 0% Tactical HUD 1 Map Filters NONE Filters NONE Steam 1 RUN: 6449e6f9-3aed-4b64-8a0b-46bc76bc6b44